bitfinex/quotes_ETHUSD_20251215
["timestamp","ask_amount","ask_price","bid_price","bid_amount"]
[1765768840973,40.55156452,3125.3,3125.2,0.001]
[1765768841268,40.95706852,3125.3,3125.2,0.001]
[1765768841638,41.53754381,3125.3,3125.2,0.001]
[1765768841839,41.13203981,3125.3,3125.2,0.001]
[1765768842068,41.53754381,3125.3,3125.2,0.001]
[1765768842582,41.53294381,3125.3,3125.2,0.4827]
[1765768842746,41.80974381,3125.3,3125.2,0.001]
[1765768843145,42.26704381,3125.3,3125.2,0.001]
[1765768845551,41.80974381,3125.3,3125.2,0.001]
[1765768845752,42.26704381,3125.3,3125.2,0.001]
[1765768847382,46.6949646,3125.3,3125.2,0.001]
[1765768847880,16.6949646,3125.3,3125.2,0.001]
[1765768848095,46.6949646,3125.3,3125.2,0.001]
[1765768848276,46.6949646,3125.3,3125.2,0.9756]
[1765768848277,40.09071281,3125.3,3125.2,0.9756]
[1765768848467,40.59771281,3125.3,3125.2,0.4827]
[1765768848668,40.59771281,3125.3,3125.2,0.001]
[1765768848669,40.87451281,3125.3,3125.2,0.001]
[1765768848997,46.6949646,3125.3,3125.2,0.001]
[1765768850816,41.53294381,3125.3,3125.2,0.4827]
[1765768851311,41.80974381,3125.3,3125.2,0.001]
[1765768852387,42.26704381,3125.3,3125.2,0.001]
[1765768854992,12.26704381,3125.3,3125.2,0.001]
[1765768855178,42.26704381,3125.3,3125.2,0.001]
[1765768856082,41.80974381,3125.3,3125.2,0.001]
[1765768857514,42.26704381,3125.3,3125.2,0.001]
[1765768857814,42.39522777,3125.3,3125.2,0.001]
[1765768858589,46.82314856,3125.3,3125.2,0.001]
[1765768859207,16.82314856,3125.3,3125.2,0.001]
[1765768859406,46.82314856,3125.3,3125.2,0.001]
[1765768859607,51.25106935,3125.3,3125.2,0.001]
[1765768860115,16.82314856,3125.3,3125.2,0.001]
[1765768860288,51.25106935,3125.3,3125.2,0.001]
[1765768860483,46.82314856,3125.3,3125.2,0.001]
[1765768861521,51.25106935,3125.3,3125.2,0.001]
[1765768862015,46.82314856,3125.3,3125.2,0.001]
[1765768863238,46.31614856,3125.3,3125.2,0.001]
[1765768863409,46.82314856,3125.3,3125.2,0.001]
[1765768864308,16.82314856,3125.3,3125.2,0.001]
[1765768864510,46.82314856,3125.3,3125.2,0.001]
[1765768864716,46.82314856,3125.3,3124.9,0.001]
[1765768864717,0.98597929,3125.0,3124.9,0.001]
[1765768864910,39.85398846,3125.0,3124.9,0.001]
[1765768865222,10.33708846,3125.0,3124.9,0.001]
[1765768865430,40.33708846,3125.0,3124.9,0.001]
[1765768866011,35.90916767,3125.0,3124.9,0.001]
[1765768866212,36.40977178,3125.0,3124.9,0.001]
[1765768866434,39.60977178,3125.0,3124.9,0.001]
[1765768866635,34.3672717,3125.0,3124.9,0.4513]
[1765768866839,30.0,3124.9,3124.8,0.001]
[1765768867042,33.61691214,3124.9,3124.8,0.001]
[1765768867209,33.61691214,3124.9,3124.8,0.4513]
[1765768867410,30.0,3124.7,3124.5,0.4667]
[1765768867609,31.50264688,3124.6,3124.5,0.4667]
[1765768868032,31.50264688,3124.6,3124.5,0.6396]
[1765768868612,34.70305653,3124.6,3124.5,0.6396]
[1765768869342,35.20366064,3124.6,3124.5,0.6396]
[1765768870539,35.20366064,3124.6,3124.5,0.1729]
[1765768871516,5.20366064,3124.6,3124.5,0.1729]
[1765768871823,0.98597929,3124.2,3124.1,0.1903]
[1765768872023,31.50264688,3124.2,3124.1,0.3632]
[1765768872222,31.50264688,3124.2,3124.1,0.5361]
[1765768872536,37.33439913,3124.2,3124.1,0.1739]
[1765768872727,37.81299913,3124.2,3124.1,0.001]
[1765768873235,37.33439913,3124.2,3124.1,0.1739]
[1765768873544,6.82739913,3124.2,3124.1,0.3468]
[1765768873746,34.70346628,3124.2,3124.1,0.3468]
[1765768874256,14.06897028,3124.2,3124.1,0.3468]
[1765768874614,25.96149428,3124.2,3124.1,0.3468]
[1765768874814,22.13756528,3124.2,3124.1,0.3468]
[1765768875013,22.13756528,3124.2,3124.1,0.1739]
[1765768875249,18.18286127,3124.2,3124.1,0.3468]
[1765768876150,17.67586127,3124.2,3124.1,0.3468]
[1765768876341,12.04174388,3124.2,3124.1,0.3468]
[1765768876537,0.51666759,3124.2,3124.1,0.3468]
[1765768876848,0.51666759,3124.2,3124.1,3.54772186]
[1765768885183,0.51666759,3124.2,3124.1,0.3468]
[1765768889873,0.51666759,3124.2,3124.1,3.54772186]
[1765768891080,0.51666759,3124.2,3124.1,4.22280053]
[1765768892275,0.51666759,3124.2,3124.1,1.02187867]
[1765768892587,0.00966759,3124.6,3124.1,10.62463804]
[1765768892765,0.00966759,3124.6,3124.5,4.60104785]
[1765768892962,0.51666759,3124.6,3124.5,4.60104785]
[1765768893277,0.51666759,3124.6,3124.5,5.23405263]
[1765768893891,0.51666759,3124.6,3124.5,8.43456471]
[1765768894868,0.51666759,3124.6,3124.5,4.00641686]
[1765768896797,0.51666759,3124.6,3124.5,0.1729]
[1765768896998,0.51666759,3124.6,3124.5,3.37341208]
[1765768897172,0.51666759,3124.6,3124.5,3.54631208]
[1765768898600,0.51666759,3124.6,3124.5,0.3458]
[1765768898896,0.98516759,3124.6,3124.1,0.001]
[1765768899072,0.00966759,3124.2,3124.1,0.001]
[1765768899469,0.00966759,3124.2,3124.1,0.1739]
[1765768902268,4.67679067,3124.2,3124.1,0.001]
[1765768902990,0.77771967,3124.2,3124.1,0.1739]
[1765768903170,0.41517159,3124.2,3124.1,0.1739]
[1765768904601,0.92117159,3124.2,3124.1,0.1739]
[1765768905097,0.41517159,3124.2,3124.1,0.1739]
[1765768905298,0.00966759,3124.2,3124.1,3.54772186]
[1765768905507,0.51566759,3124.2,3124.1,3.54772186]
[1765768909699,0.51566759,3124.2,3124.1,0.3468]
[1765768910486,0.51566759,3124.2,3124.1,3.54772186]
[1765768911597,0.51566759,3124.2,3124.1,0.3468]
[1765768912706,0.51566759,3124.2,3124.1,3.54772186]
[1765768912886,0.51566759,3124.2,3124.1,0.3468]
[1765768914203,0.51566759,3124.2,3124.1,3.54772186]
[1765768914508,0.51566759,3124.2,3124.1,0.3468]
[1765768914704,0.51566759,3124.2,3124.1,3.54772186]
[1765768915105,0.51566759,3124.2,3124.1,0.3468]
[1765768915408,0.00966759,3124.2,3124.1,0.1739]
[1765768915586,0.00966759,3124.2,3124.1,3.37482186]
[1765768915587,0.51566759,3124.2,3124.1,3.37482186]
[1765768916095,0.51566759,3124.2,3124.1,3.54772186]
[1765768916493,0.00966759,3124.2,3124.1,3.54772186]
[1765768916697,0.51566759,3124.2,3124.1,3.54772186]
[1765768916891,0.00966759,3124.2,3124.1,4.22280232]
[1765768917078,0.51566759,3124.2,3124.1,4.22280232]
[1765768918204,0.00966759,3124.4,3124.1,7.42372418]
[1765768918410,0.51566759,3124.4,3124.3,3.37361696]
[1765768918611,0.01166759,3124.8,3124.3,14.9456599]
[1765768918795,0.002,3124.8,3124.7,0.1729]
[1765768919195,0.002,3124.8,3124.7,0.3458]
[1765768919607,0.002,3124.8,3124.7,4.77039325]
[1765768920590,0.002,3124.8,3124.7,7.97070047]
[1765768920784,0.002,3124.8,3124.7,9.08781308]
[1765768921498,0.002,3124.8,3124.7,9.66828837]
[1765768921692,0.002,3124.8,3124.7,14.09288162]
[1765768922424,0.002,3124.8,3124.7,9.66828837]
[1765768930306,0.002,3124.8,3124.7,5.07079512]
[1765768930518,0.4735,3124.8,3124.7,3.20030722]
[1765768930723,0.002,3124.8,3124.7,3.20030722]
[1765768931226,0.002,3124.8,3124.7,3.37320722]
[1765768932124,0.4735,3124.8,3124.6,0.001]
[1765768932429,0.48116759,3124.7,3124.6,0.001]
[1765768932606,0.64562111,3124.7,3124.6,0.001]
[1765768932811,1.10902111,3124.7,3124.6,0.001]
[1765768933309,1.10902111,3124.7,3124.6,3.20140965]
[1765768933514,1.10902111,3124.7,3124.6,0.001]
[1765768934039,1.51452511,3124.7,3124.6,0.001]
[1765768934236,25.00656811,3124.7,3124.6,0.001]
[1765768934539,8.16661911,3124.7,3124.6,0.001]
[1765768935944,1.51452511,3124.7,3124.6,0.001]
[1765768944855,0.002,3124.8,3124.6,0.1739]
[1765768945056,0.51566759,3124.7,3124.6,0.001]
[1765768945458,0.51566759,3124.7,3124.6,3.37430965]
[1765768946149,0.98716759,3124.7,3124.6,0.001]
[1765768946459,1.45056759,3124.7,3124.6,0.001]
[1765768946657,0.98716759,3124.7,3124.6,0.001]
[1765768947229,0.98716759,3124.7,3124.6,3.20140965]
[1765768947457,0.51566759,3124.7,3124.6,3.20140965]
[1765768947770,0.51566759,3124.7,3124.6,3.37430965]
[1765768948059,0.00966759,3124.7,3124.6,3.37430965]
[1765768948237,0.51566759,3124.7,3124.6,3.37430965]
[1765768949458,0.51566759,3124.7,3124.6,3.20140965]
[1765768949958,0.51566759,3124.7,3124.6,3.37430965]
[1765768950456,0.98306759,3124.7,3124.6,0.001]
[1765768950654,1.44216759,3124.7,3124.6,0.001]
[1765768952366,5.53179279,3124.7,3124.6,0.001]
[1765768952654,2.33148557,3124.7,3124.6,0.001]
[1765768954745,5.53179279,3124.7,3124.6,0.001]
[1765768960087,2.33148557,3124.7,3124.6,0.001]
[1765768962558,5.53179279,3124.7,3124.6,0.001]
[1765768963279,2.33148557,3124.7,3124.6,0.001]
[1765768963881,1.82548557,3124.7,3124.6,0.001]
[1765768964068,1.38857159,3124.7,3124.6,0.001]
[1765768964251,0.92117159,3124.7,3124.6,0.1739]
[1765768965096,0.51566759,3124.7,3124.6,0.1739]
[1765768965595,0.51566759,3124.7,3124.6,0.001]
[1765768965596,0.98306759,3124.7,3124.6,0.001]
[1765768965759,1.44216759,3124.7,3124.6,0.001]
[1765768966689,2.38953693,3124.7,3124.6,0.001]
[1765768966889,1.84767159,3124.7,3124.6,0.001]
[1765768968592,5.04797881,3124.7,3124.6,0.001]
[1765768968774,1.84767159,3124.7,3124.6,0.001]
[1765768970200,5.04797881,3124.7,3124.6,0.001]
[1765768972097,1.84767159,3124.7,3124.6,0.001]
[1765768972295,2.87299095,3124.7,3124.6,0.001]
[1765768972496,6.07329817,3124.7,3124.6,0.001]
[1765768973704,2.87299095,3124.7,3124.6,0.001]
[1765768974872,5.04797881,3124.7,3124.6,0.001]
[1765768975630,1.84767159,3124.7,3124.6,0.001]
[1765768975993,0.51566759,3124.7,3124.6,0.1739]
[1765768976173,0.92117159,3124.7,3124.6,0.1739]
[1765768976373,0.00966759,3124.7,3124.6,0.1739]
[1765768976581,0.506,3124.7,3124.6,0.3468]
[1765768977574,0.506,3124.7,3124.6,0.1739]
[1765768977775,0.9931,3124.7,3124.6,0.001]
[1765768978074,0.506,3124.7,3124.6,0.1739]
[1765768978408,0.9931,3124.7,3124.6,0.001]
[1765768978597,1.4819,3124.7,3124.6,0.001]
[1765768979590,0.9931,3124.7,3124.6,0.001]
[1765768980609,0.506,3124.7,3124.6,0.1739]
[1765768981209,0.9931,3124.7,3124.6,0.001]
[1765768981401,2.33721127,3124.7,3124.6,0.001]
[1765768981707,5.53751849,3124.7,3124.6,0.001]
[1765768982008,2.33721127,3124.7,3124.6,0.001]
[1765768983889,6.11799378,3124.7,3124.6,0.001]
[1765768987811,36.11799378,3124.7,3124.6,0.001]
[1765768988209,36.24617816,3124.7,3124.6,0.001]
[1765768991803,30.98597929,3124.6,3124.5,0.001]
[1765768992008,34.65327657,3124.6,3124.5,0.001]
[1765768992814,37.85368622,3124.6,3124.5,0.001]
[1765768995500,0.98597929,3124.4,3124.1,0.001]
[1765768995694,40.340617,3124.2,3124.1,0.001]
[1765768995895,46.670617,3124.2,3124.1,0.001]
[1765768996202,47.72779242,3124.2,3124.1,0.001]
[1765768996796,0.98597929,3123.7,3122.9,0.001]
[1765768997105,45.94446531,3123.7,3122.9,0.001]
[1765768997308,46.43326531,3123.7,3123.2,0.001]
[1765768997515,49.25291684,3123.7,3123.2,0.001]
[1765768998909,19.25291684,3123.7,3123.2,0.001]
[1765768999209,49.25291684,3123.7,3123.2,0.001]
[1765769000028,19.82009057,3123.7,3123.2,0.001]
[1765769000228,20.79599057,3123.7,3123.2,0.001]
[1765769000940,44.81886257,3123.7,3123.2,0.001]
[1765769001925,14.81886257,3123.7,3123.2,0.001]
[1765769002135,44.81886257,3123.7,3123.2,0.001]
[1765769003229,44.31286257,3123.7,3123.2,0.001]
[1765769003428,44.81886257,3123.7,3123.2,0.001]
[1765769005134,44.31286257,3123.7,3123.2,0.001]
[1765769005322,44.81886257,3123.7,3123.2,0.001]
[1765769006041,14.81886257,3123.7,3123.2,0.001]
[1765769006202,44.81886257,3123.7,3123.2,0.001]
[1765769008913,44.31286257,3123.7,3123.2,0.001]
[1765769009234,44.81886257,3123.7,3123.2,0.001]
[1765769012435,37.08855857,3123.7,3123.2,0.001]
[1765769012617,38.20102655,3123.7,3123.2,0.001]
[1765769012804,38.60653055,3123.7,3123.2,0.001]
[1765769013009,39.18700584,3123.7,3123.2,0.001]
[1765769013216,42.89491684,3123.7,3123.2,0.001]
[1765769013433,42.38891684,3123.7,3123.2,0.001]
[1765769013609,42.89491684,3123.7,3123.2,0.001]
[1765769014019,16.62205757,3123.7,3123.6,0.1739]
[1765769014224,19.549512,3123.7,3123.6,0.1739]
[1765769014407,3.73509,3123.7,3123.6,0.1739]
[1765769014614,4.28780704,3123.7,3123.6,0.1739]
[1765769014830,4.69331104,3123.7,3123.6,0.3468]
[1765769017368,1.49197929,3123.7,3123.6,0.3468]
[1765769017715,1.49197929,3123.7,3123.6,0.1739]
[1765769017716,4.69331104,3123.7,3123.6,0.1739]
[1765769017915,4.69331104,3123.7,3123.6,0.3468]
[1765769018162,19.58533204,3123.7,3123.6,0.001]
[1765769018439,13.7000699,3123.7,3123.6,0.001]
[1765769019225,36.1198089,3123.7,3123.6,0.001]
[1765769021256,36.24805081,3123.7,3123.6,0.001]
[1765769025738,42.57805081,3123.7,3123.6,0.001]
[1765769029745,42.57805081,3123.7,3123.4,0.001]
[1765769029746,0.98597929,3123.6,3123.4,0.001]
[1765769029943,39.03707266,3123.6,3123.4,0.001]
[1765769031169,39.04674025,3123.6,3123.4,0.001]
[1765769031536,42.24817449,3123.6,3123.4,0.001]
[1765769032447,12.24817449,3123.6,3123.4,0.001]
[1765769032640,42.24817449,3123.6,3123.4,0.001]
[1765769033467,42.24814344,3123.6,3123.4,0.001]
[1765769034551,48.57814344,3123.6,3123.4,0.001]
[1765769035257,48.70641331,3123.6,3123.4,0.001]
[1765769035568,48.70633226,3123.6,3123.4,0.001]
[1765769035864,48.75153226,3123.6,3123.4,0.001]
[1765769036871,41.75349526,3123.6,3123.4,0.001]
[1765769037043,42.15899926,3123.6,3123.4,0.001]
[1765769037571,49.19443226,3123.6,3123.4,0.001]
[1765769038443,49.19643226,3123.6,3123.4,0.001]
[1765769039466,48.25833226,3123.6,3123.5,0.1739]
[1765769039668,43.82439009,3123.6,3123.5,0.001]
[1765769039967,43.82439009,3123.6,3123.5,0.1739]
[1765769041268,43.41888609,3123.6,3123.5,0.1739]
[1765769041673,43.82439009,3123.6,3123.5,0.1739]
[1765769041888,27.9403538,3123.6,3123.5,0.1739]
[1765769042181,27.9403538,3123.6,3123.5,0.3468]
[1765769042182,22.41760446,3123.6,3123.5,0.3468]
[1765769042370,11.68271659,3123.6,3123.5,0.3468]
[1765769042678,12.26319188,3123.6,3123.5,0.3468]
[1765769042976,0.51766759,3123.6,3123.5,0.3468]
[1765769043563,20.97981412,3123.6,3123.5,0.1739]
[1765769043762,20.97981412,3123.6,3123.5,0.3468]
[1765769043962,13.20268888,3123.6,3123.5,0.3468]
[1765769044275,7.83118688,3123.6,3123.5,0.3468]
[1765769044478,1.50364688,3123.6,3123.5,0.3468]
[1765769044684,10.34535488,3123.6,3123.5,0.3468]
[1765769045174,10.75085888,3123.6,3123.5,0.3468]
[1765769045382,13.95229312,3123.6,3123.5,0.3468]
[1765769045561,19.30686288,3123.6,3123.5,0.3468]
[1765769045750,17.24550488,3123.6,3123.5,0.3468]
[1765769046152,20.44693912,3123.6,3123.5,0.3468]
[1765769046478,18.24116712,3123.6,3123.5,0.3468]
[1765769047778,18.64912512,3123.6,3123.5,0.3468]
[1765769048659,10.49931712,3123.6,3123.5,0.3468]
[1765769048855,22.43262712,3123.6,3123.5,0.3468]
[1765769053762,22.43262712,3123.6,3123.5,0.1739]
[1765769054092,22.43262712,3123.6,3123.5,0.3468]
[1765769060295,22.33262712,3123.6,3123.5,0.3468]
[1765769063497,22.33262712,3123.6,3123.5,0.1739]
[1765769063688,34.60508112,3123.6,3123.5,0.1739]
[1765769063995,26.42179571,3123.6,3123.5,0.1739]
[1765769064867,32.70116471,3123.6,3123.5,0.1739]
[1765769065299,32.70316471,3123.6,3123.5,0.1739]
[1765769065988,30.74356571,3123.6,3123.5,0.001]
[1765769066168,30.27616571,3123.6,3123.5,0.1739]
[1765769066367,4.70508112,3123.6,3123.5,0.3468]
[1765769066593,7.47950512,3123.6,3123.5,0.3468]
[1765769066899,22.39525212,3123.6,3123.5,0.3468]
[1765769067068,21.60019512,3123.6,3123.5,0.3468]
[1765769067268,14.33666012,3123.6,3123.5,0.3468]
[1765769068295,14.03816012,3123.6,3123.5,0.3468]
[1765769069193,25.55769212,3123.6,3123.5,0.3468]
[1765769070172,0.002,3123.6,3123.5,0.3468]
[1765769070379,0.508,3123.6,3123.5,0.3468]
[1765769071008,0.508,3123.6,3123.5,0.70185365]
[1765769072604,0.508,3123.6,3123.5,3.90339038]
[1765769073002,0.508,3123.6,3123.5,0.70185365]
[1765769074710,18.44223076,3123.6,3123.5,0.001]
[1765769075009,30.19394205,3123.6,3123.5,0.001]
[1765769075787,40.08613505,3123.6,3123.5,0.001]
[1765769076881,10.08613505,3123.6,3123.5,0.001]
[1765769077082,40.08613505,3123.6,3123.5,0.001]
[1765769080008,21.90854524,3123.6,3123.5,0.001]
[1765769080312,22.32371683,3123.6,3123.5,0.001]
[1765769080614,22.90419212,3123.6,3123.5,0.001]
[1765769081003,18.55250412,3123.6,3123.5,0.001]
[1765769081905,33.30684312,3123.6,3123.5,0.001]
[1765769082088,31.94759312,3123.6,3123.5,0.001]
[1765769082891,35.66258112,3123.6,3123.5,0.001]
[1765769084088,35.16768112,3123.6,3123.5,0.001]
[1765769084483,35.66258112,3123.6,3123.5,0.001]
[1765769085885,5.66258112,3123.6,3123.5,0.001]
[1765769086226,37.62626001,3123.6,3123.5,0.001]
[1765769087813,40.99726001,3123.6,3123.5,0.001]
[1765769088015,43.95626001,3123.6,3123.5,0.001]
[1765769088256,44.08452577,3123.6,3123.5,0.001]
[1765769093617,48.51864551,3123.6,3123.5,0.001]
[1765769098227,18.51864551,3123.6,3123.5,0.001]
[1765769098527,48.51864551,3123.6,3123.5,0.001]
[1765769099219,48.39037975,3123.6,3123.5,0.001]
[1765769100416,25.06646212,3123.6,3123.5,0.1739]
[1765769100615,25.57246212,3123.6,3123.5,0.1739]
[1765769100822,11.90375759,3123.6,3123.5,0.3468]
[1765769101328,5.57375759,3123.6,3123.5,0.3468]
[1765769101844,5.06775759,3123.6,3123.5,0.70184575]
[1765769102013,0.508,3123.6,3123.5,3.90338248]
[1765769102445,0.508,3123.6,3123.5,0.70184575]
[1765769102720,0.508,3123.6,3123.5,0.3468]
[1765769103328,3.208354,3123.6,3123.5,0.3468]
[1765769103526,0.51766759,3123.6,3123.5,0.3468]
[1765769103901,0.508,3123.6,3123.5,3.54833673]
[1765769105430,0.508,3123.6,3123.5,0.3468]
[1765769105629,0.508,3123.6,3123.5,0.7018367]
[1765769106702,0.913504,3123.6,3123.5,0.7018367]
[1765769107032,0.913504,3123.6,3123.5,0.3468]
[1765769107033,0.508,3123.6,3123.5,0.3468]
[1765769107401,0.508,3123.6,3123.5,3.54833673]
[1765769133155,0.002,3123.6,3123.5,3.54833673]
[1765769133349,0.002,3123.6,3123.5,3.37543673]
[1765769133653,0.002,3123.6,3123.5,3.78094389]
[1765769135456,0.002,3123.6,3123.5,0.57940716]
[1765769135656,0.002,3123.6,3123.5,3.37543673]
[1765769135854,0.881004,3123.6,3123.5,0.001]
[1765769136159,0.407504,3123.6,3123.5,0.1739]
[1765769136845,0.002,3123.6,3123.5,3.40745209]
[1765769137041,0.002,3123.6,3123.5,4.65242479]
[1765769141833,0.002,3123.6,3123.5,4.68444015]
[1765769142259,0.002,3123.6,3123.5,4.65242479]
[1765769142459,0.002,3123.6,3123.5,4.68444015]
[1765769144066,0.002,3123.6,3123.5,4.65242479]
[1765769146577,0.002,3124.9,3124.6,8.85941682]
[1765769146770,0.002,3124.9,3124.7,0.1729]
[1765769146964,0.002,3124.9,3124.7,0.3458]
[1765769147681,0.002,3124.9,3124.7,3.54610722]
[1765769148484,0.002,3124.9,3124.7,3.37320722]
[1765769148656,0.002,3124.9,3124.7,8.63317878]
[1765769148857,0.002,3124.9,3124.7,4.03057037]
[1765769149180,0.4755,3124.8,3124.7,3.20030722]
[1765769149481,0.9451,3124.8,3124.7,3.20030722]
[1765769149655,0.9451,3124.8,3124.3,6.40143392]
[1765769150177,0.4755,3124.8,3124.3,6.57433392]
[1765769150676,0.9451,3124.8,3124.3,6.57433392]
[1765769150882,0.9451,3124.8,3124.4,1.10040423]
[1765769151778,0.9451,3124.8,3124.5,6.40102416]
[1765769152579,0.9451,3124.8,3124.5,3.20051208]
[1765769152788,0.4735,3124.6,3124.4,3.20057854]
[1765769153092,0.4735,3124.5,3124.4,3.20057854]
[1765769153668,0.9431,3124.5,3123.8,0.1729]
[1765769153865,0.4735,3124.3,3123.9,6.73967324]
[1765769154087,0.9795,3124.3,3123.9,6.73967324]
[1765769154256,1.4491,3124.3,3123.9,6.73967324]
[1765769155197,0.4735,3124.0,3123.6,0.46534248]
[1765769155482,0.41517159,3124.1,3123.8,3.20118871]
[1765769155676,0.4696,3124.0,3123.8,3.20118871]
[1765769155873,0.4735,3123.9,3123.5,0.001]
[1765769156385,0.9431,3123.9,3123.5,0.001]
[1765769156592,0.9431,3123.9,3123.6,0.64052785]
[1765769157198,0.4735,3123.9,3123.6,0.64052785]
[1765769158504,0.4735,3123.9,3123.7,3.20133175]
[1765769159792,0.9503,3123.9,3123.7,3.20133175]
[1765769160101,0.4608,3123.8,3123.7,3.20133175]
[1765769160599,0.9668,3123.8,3123.7,3.20133175]
[1765769161666,0.506,3123.8,3123.7,3.20133175]
[1765769162896,0.506,3123.8,3123.7,4.07865208]
[1765769164376,1.4436,3123.8,3123.6,0.001]
[1765769164567,0.47046759,3123.7,3123.6,0.001]
[1765769164769,0.94726759,3123.7,3123.6,0.001]
[1765769172205,1.35277159,3123.7,3123.6,0.001]
[1765769174601,0.87597159,3123.7,3123.6,0.001]
[1765769174800,1.35277159,3123.7,3123.6,0.001]
[1765769184924,1.85994608,3123.7,3123.6,0.001]
[1765769185226,34.53357883,3123.7,3123.6,0.001]
[1765769185520,15.09256183,3123.7,3123.6,0.001]
[1765769186215,11.89123008,3123.7,3123.6,0.001]
[1765769186525,5.65643708,3123.7,3123.6,0.001]
[1765769189926,9.43824412,3123.7,3123.6,0.001]
[1765769191033,6.23691237,3123.7,3123.6,0.001]
[1765769191330,9.43824412,3123.7,3123.6,0.001]
[1765769192932,6.23691237,3123.7,3123.6,0.001]
[1765769194011,9.43824412,3123.7,3123.6,0.001]
[1765769196741,6.23691237,3123.7,3123.6,0.001]
[1765769197303,0.99564688,3123.7,3123.6,0.001]
[1765769197629,1.49554688,3123.7,3123.6,0.001]
[1765769198128,0.99564688,3123.7,3123.6,0.1739]
[1765769202405,0.99564688,3123.7,3123.6,0.001]
[1765769202406,8.33658963,3123.7,3123.6,0.001]
[1765769202611,18.58369663,3123.7,3123.6,0.001]
[1765769202820,20.8139467,3123.7,3123.6,0.001]
[1765769203736,37.4130287,3123.7,3123.6,0.001]
[1765769203913,33.4149887,3123.7,3123.6,0.001]
[1765769204503,36.4007357,3123.7,3123.6,0.001]
[1765769204710,32.5696727,3123.7,3123.6,0.001]
[1765769205531,34.6072457,3123.7,3123.6,0.001]
[1765769205734,34.2867957,3123.7,3123.6,0.001]
[1765769205935,33.7171047,3123.7,3123.6,0.001]
[1765769206638,35.9883507,3123.7,3123.6,0.001]
[1765769206938,35.6679007,3123.7,3123.6,0.001]
[1765769207336,34.7472577,3123.7,3123.6,0.001]
[1765769207536,37.4130287,3123.7,3123.6,0.001]
[1765769208633,26.9409797,3123.7,3123.6,0.001]
[1765769209638,30.5596107,3123.7,3123.6,0.001]
[1765769209942,29.8417937,3123.7,3123.6,0.001]
[1765769210342,28.3742437,3123.7,3123.6,0.001]
[1765769210649,28.5984047,3123.7,3123.6,0.001]
[1765769210818,26.9664937,3123.7,3123.6,0.001]
[1765769211727,37.4130287,3123.7,3123.6,0.001]
[1765769212943,43.7430287,3123.7,3123.6,0.001]
[1765769215450,48.17629956,3123.7,3123.6,0.001]
[1765769220328,48.30456203,3123.7,3123.6,0.001]
[1765769220853,18.30456203,3123.7,3123.6,0.001]
[1765769221149,48.30456203,3123.7,3123.6,0.001]
[1765769221938,37.31397929,3123.5,3123.4,0.001]
[1765769222253,43.10940463,3123.5,3123.4,0.001]
[1765769222455,43.56490463,3123.5,3123.4,0.001]
[1765769222854,46.76644136,3123.5,3123.4,0.001]
[1765769224325,46.89471905,3123.5,3123.4,0.001]
[1765769227841,50.26671905,3123.5,3123.4,0.001]
[1765769228044,46.89471905,3123.5,3123.4,0.001]
[1765769228445,40.68497929,3123.4,3123.3,0.001]
[1765769228660,44.32792936,3123.4,3123.3,0.001]
[1765769229234,47.52956859,3123.4,3123.3,0.001]
[1765769230664,47.65785903,3123.4,3123.3,0.001]
[1765769230962,52.09338039,3123.4,3123.3,0.001]
[1765769231344,22.09338039,3123.4,3123.3,0.001]
[1765769231532,52.09338039,3123.4,3123.3,0.001]
[1765769233747,30.0,3123.0,3122.2,0.001]
[1765769233950,31.94317929,3123.0,3122.2,0.1739]
[1765769234278,36.83420065,3123.0,3122.2,0.1739]
[1765769234449,36.96249109,3123.0,3122.2,0.1739]
[1765769234773,36.96249109,3123.0,3122.2,0.001]
[1765769234938,36.96249109,3123.0,3122.3,0.1739]
[1765769235560,40.1645404,3123.0,3122.3,0.1739]
[1765769235761,42.39479047,3123.0,3122.3,0.1739]
[1765769237461,37.95926911,3123.0,3122.4,0.1739]
[1765769237758,42.39479047,3123.0,3122.4,0.1739]
[1765769239763,48.71979047,3123.0,3122.4,0.1739]
[1765769240664,48.71979047,3123.0,3122.4,0.001]
[1765769240844,18.71979047,3123.0,3122.5,0.1729]
[1765769241045,48.71979047,3123.0,3122.5,0.1729]
[1765769241481,43.37756911,3123.0,3122.9,0.1739]
[1765769241967,13.37756911,3123.0,3122.9,0.1739]
[1765769242147,43.37756911,3123.0,3122.9,0.001]
[1765769242468,43.82876911,3123.0,3122.9,0.001]
[1765769242672,43.37756911,3123.0,3122.9,0.001]
[1765769242865,38.11148811,3123.0,3122.9,0.1739]
[1765769243180,43.37756911,3123.0,3122.9,0.1739]
[1765769245300,22.36500975,3123.0,3122.9,0.1739]
[1765769245478,22.87100975,3123.0,3122.9,0.3468]
[1765769245660,23.45148504,3123.0,3122.9,0.3468]
[1765769245860,13.19677504,3123.0,3122.9,0.3468]
[1765769246056,7.03376573,3123.0,3122.9,0.3468]
[1765769246258,14.88628704,3123.0,3122.9,0.3468]
[1765769246475,11.14731904,3123.0,3122.9,0.3468]
[1765769246681,11.0190286,3123.0,3122.9,0.3468]
[1765769246972,4.2885246,3123.0,3122.9,0.3468]
[1765769247177,4.6940286,3123.0,3122.9,0.3468]
[1765769247675,13.7745816,3123.0,3122.9,0.1739]
[1765769247981,14.1213816,3123.0,3122.9,0.3468]
[1765769248675,17.0179016,3123.0,3122.9,0.3468]
[1765769249080,5.0408286,3123.0,3122.9,0.3468]
[1765769249651,4.6940286,3123.0,3122.9,0.3468]
[1765769250468,11.2325406,3123.0,3122.9,0.3468]
[1765769251469,12.4007676,3123.0,3122.9,0.3468]
[1765769252358,4.6940286,3123.0,3122.9,0.3468]
[1765769252558,13.1093966,3123.0,3122.9,0.3468]
[1765769252994,12.7889046,3123.0,3122.9,0.3468]
[1765769253161,11.5514046,3123.0,3122.9,0.3468]